bitfinex/quotes_SOLUSD_20241205
["timestamp","ask_amount","ask_price","bid_price","bid_amount"]
[1733366961009,13.03549,232.22,232.02,0.2826028]
[1733366961226,17.03549,232.22,231.96,5.0]
[1733366961523,13.03549,232.2,231.96,5.0]
[1733366961733,13.03549,232.2,231.96,6.0]
[1733366961899,0.12549,232.19,231.96,6.0]
[1733366962227,5.14090768,232.18,232.05,5.0]
[1733366962439,7.7274,232.24,232.05,5.0]
[1733366962601,7.7274,232.24,232.06,5.0]
[1733366962797,7.7274,232.24,232.09,6.0]
[1733366963029,5.3876,232.29,232.19,5.0]
[1733366963332,13.029,232.45,232.22,5.0]
[1733366963333,21.2245,232.45,232.22,5.0]
[1733366963503,8.1955,232.39,232.23,1.0]
[1733366963807,21.2245,232.45,232.23,1.0]
[1733366964007,5.14090768,232.38,232.22,6.0]
[1733366964209,21.2245,232.45,232.2,6.0]
[1733366964210,18.05090768,232.44,232.2,6.0]
[1733366964422,5.14090768,232.44,232.24,1.0]
[1733366964727,5.14090768,232.44,232.26,5.0]
[1733366965121,5.3845,232.43,232.24,6.0]
[1733366965317,8.1955,232.45,232.29,5.0]
[1733366965622,8.1955,232.45,232.22,5.0]
[1733366965623,5.26639768,232.44,232.22,5.0]
[1733366965830,5.26639768,232.44,232.25,1.0]
[1733366966123,5.14090768,232.52,232.29,6.0]
[1733366966522,0.12549,232.51,232.25,1.0]
[1733366966707,4.12549,232.51,232.24,5.0]
[1733366966907,0.12549,232.49,232.24,5.0]
[1733366967225,0.12549,232.44,232.24,6.0]
[1733366967405,0.25098,232.44,232.24,5.0]
[1733366967729,0.25098,232.39,232.22,5.0]
[1733366968034,5.26639768,232.39,232.24,5.0]
[1733366968227,20.0,232.4,232.22,5.0]
[1733366968531,0.12549,232.34,232.22,5.0]
[1733366968706,0.12549,232.34,232.21,1.0]
[1733366969023,0.12549,232.34,232.22,5.0]
[1733366969206,4.0,232.62,232.32,5.0]
[1733366969405,5.14090768,232.61,232.33,1.0]
[1733366969606,4.0,232.6,232.33,1.0]
[1733366969812,4.0,232.6,232.29,12.8067]
[1733366969813,4.0,232.55,232.29,12.8067]
[1733366970013,12.91,232.56,232.29,12.8067]
[1733366970214,4.0,232.52,232.27,1.0]
[1733366970420,4.0,232.52,232.3,5.0]
[1733366970723,4.12549,232.5,232.26,5.0]
[1733366971226,0.12549,232.48,232.29,5.0]
[1733366971638,20.0,232.44,232.29,5.0]
[1733366971815,20.0,232.44,232.28,5.0]
[1733366972021,20.0,232.4,232.27,5.0]
[1733366972331,20.0,232.4,232.26,1.0]
[1733366972533,20.0,232.4,232.3,5.0]
[1733366972908,0.12549,232.39,232.28,5.0]
[1733366973107,0.12549,232.39,232.27,6.0]
[1733366973315,0.12549,232.39,232.29,1.0]
[1733366973515,20.0,232.4,232.32,1.0]
[1733366973732,5.14090768,232.5,232.31,5.0]
[1733366973919,0.12549,232.49,232.28,1.0]
[1733366974114,0.12549,232.49,232.3,5.0]
[1733366974316,0.12549,232.47,232.31,1.0]
[1733366974522,3.8114579,232.57,232.34,6.0]
[1733366974706,5.14090768,232.54,232.34,6.0]
[1733366975235,5.14090768,232.54,232.34,5.0]
[1733366975425,0.12549,232.53,232.34,6.0]
[1733366975819,0.12549,232.48,232.32,5.0]
[1733366976131,0.12549,232.43,232.3,5.0]
[1733366976311,0.12549,232.39,232.26,1.0]
[1733366976639,20.12549,232.39,232.28,6.0]
[1733366976839,20.12549,232.39,232.26,5.0]
[1733366977048,5.14090768,232.38,232.23,5.0]
[1733366977223,20.0,232.35,232.2,13.278]
[1733366977413,20.0,232.31,232.2,13.278]
[1733366977624,20.0,232.31,232.17,1.0]
[1733366977925,0.12549,232.3,232.11,17.7706]
[1733366978118,20.0,232.24,232.13,5.0]
[1733366978317,20.0,232.24,232.12,5.0]
[1733366978721,20.0,232.24,232.14,5.0]
[1733366978930,32.91,232.24,232.08,5.0]
[1733366979318,20.0,232.21,232.1,5.0]
[1733366979813,20.0,232.23,232.12,5.0]
[1733366980020,20.0,232.23,232.11,1.0]
[1733366980327,20.0,232.23,232.11,6.0]
[1733366980520,20.0,232.23,232.15,5.0]
[1733366980727,0.12549,232.3,232.15,6.0]
[1733366981037,5.14090768,232.4,232.18,1.0]
[1733366981237,5.14090768,232.4,232.2,1.0]
[1733366981539,5.14090768,232.4,232.22,6.0]
[1733366981714,0.12549,232.39,232.18,5.0]
[1733366981918,0.12549,232.39,232.18,1.0]
[1733366982118,5.14090768,232.38,232.22,5.0]
[1733366982333,5.14090768,232.38,232.22,1.0]
[1733366982539,5.14090768,232.38,232.25,6.0]
[1733366982732,5.14090768,232.38,232.2,1.0]
[1733366982933,0.12549,232.37,232.17,0.12549]
[1733366983240,13.03549,232.35,232.09,1.0]
[1733366983422,13.03549,232.35,232.01,12.082]
[1733366983423,0.12549,232.35,232.15,1.0]
[1733366983630,5.14090768,232.34,232.13,1.0]
[1733366983815,0.12549,232.3,232.13,1.0]
[1733366984332,20.0,232.26,232.09,1.0]
[1733366984515,20.0,232.26,232.16,5.0]
[1733366984720,0.12549,232.44,232.19,5.0]
[1733366984923,13.16098,232.42,232.19,5.0]
[1733366985133,0.12549,232.42,232.19,5.0]
[1733366985320,0.25098,232.4,232.21,5.0]
[1733366985645,5.14090768,232.42,232.25,5.0]
[1733366985933,5.14090768,232.42,232.22,5.0]
[1733366986142,0.12549,232.41,232.2,5.0]
[1733366986318,21.0092,232.47,232.2,5.0]
[1733366986514,5.14090768,232.4,232.2,5.0]
[1733366986736,8.0992,232.47,232.26,5.0]
[1733366986939,0.12549,232.45,232.23,5.0]
[1733366987240,5.14090768,232.44,232.2,5.0]
[1733366987434,0.12549,232.43,232.22,5.0]
[1733366987735,5.14090768,232.42,232.21,5.0]
[1733366987936,20.0,232.39,232.27,5.0]
[1733366988120,20.0,232.39,232.22,5.0]
[1733366988319,5.14090768,232.42,232.27,5.0]
[1733366988643,5.14090768,232.46,232.31,5.0]
[1733366989337,5.14090768,232.46,232.29,5.0]
[1733366989742,0.12549,232.45,232.31,5.0]
[1733366990039,8.0992,232.47,232.35,5.0]
[1733366990348,7.9498,232.57,232.41,5.0]
[1733366990529,5.14090768,232.61,232.46,5.0]
[1733366991044,1.0085338,232.63,232.46,5.0]
[1733366991349,5.14090768,232.62,232.48,5.0]
[1733366991515,1.0085338,232.63,232.46,5.0]
[1733366991845,1.0085338,232.63,232.5,5.0]
[1733366992019,1.0085338,232.63,232.52,5.0]
[1733366992020,5.14090768,232.62,232.52,5.0]
[1733366992214,1.0085338,232.63,232.52,5.0]
[1733366992418,1.0085338,232.63,232.54,5.0]
[1733366992947,1.0085338,232.63,232.54,1.2673595]
[1733366993440,1.0085338,232.63,232.57,1.2673595]
[1733366993745,1.0085338,232.63,232.59,1.2673595]
[1733366993935,1.0085338,232.63,232.57,1.2673595]
[1733366994117,1.0085338,232.63,232.56,1.2673595]
[1733366994548,1.0085338,232.63,232.61,1.2673595]
[1733366994720,1.0085338,232.63,232.55,1.2673595]
[1733366995048,1.0085338,232.63,232.61,1.2673595]
[1733366995248,1.0085338,232.63,232.54,1.2673595]
[1733366995542,1.0085338,232.63,232.59,1.2673595]
[1733366995722,1.0085338,232.63,232.57,1.2673595]
[1733366995927,1.0085338,232.63,232.59,1.2673595]
[1733366996949,1.0085338,232.63,232.57,1.2673595]
[1733366997155,1.0085338,232.63,232.52,1.2673595]
[1733366997327,1.0085338,232.63,232.56,1.2673595]
[1733366997641,1.0085338,232.63,232.58,1.2673595]
[1733366998233,1.0085338,232.63,232.61,1.2673595]
[1733367001339,1.0085338,232.63,232.62,0.12549]
[1733367001560,1.0085338,232.63,232.62,12.098]
[1733367002055,1.0085338,232.63,232.61,1.2673595]
[1733367002735,0.5845878,232.79,232.73,1.2673595]
[1733367003058,0.5845878,232.79,232.67,1.2673595]
[1733367003239,0.5845878,232.79,232.61,1.2673595]
[1733367003445,5.14090768,232.78,232.61,1.2673595]
[1733367003651,0.12549,232.77,232.6,1.2673595]
[1733367003961,5.14090768,232.76,232.6,1.2673595]
[1733367004342,0.5845878,232.79,232.64,1.2673595]
[1733367004534,0.5845878,232.79,232.68,1.2673595]
[1733367004740,0.5845878,232.79,232.64,1.2673595]
[1733367004932,0.12549,232.78,232.62,1.2673595]
[1733367005149,0.12549,232.74,232.6,1.2673595]
[1733367005459,0.12549,232.72,232.49,1.2673595]
[1733367005759,24.027864,232.68,232.43,14.2714595]
[1733367006058,24.027864,232.68,232.31,8.2219]
[1733367006059,0.12549,232.56,232.38,1.2673595]
[1733367006250,20.0,232.45,232.33,13.0152]
[1733367006453,23.776884,232.44,232.33,13.0152]
[1733367006761,20.0,232.41,232.33,13.0152]
[1733367007158,20.0,232.41,232.27,1.2673595]
[1733367007468,0.12549,232.65,232.46,1.2673595]
[1733367007761,4.99999999,232.74,232.51,1.2673595]
[1733367007974,0.12549,232.7,232.48,1.2673595]
[1733367008264,4.93773196,232.7,232.45,1.2673595]
[1733367008560,7.7962,232.71,232.56,1.2673595]
[1733367008761,7.9071,232.82,232.62,1.2673595]
[1733367008959,3.7326405,232.81,232.55,1.2673595]
[1733367009262,4.93773196,232.78,232.55,1.2673595]
[1733367009560,7.9071,232.82,232.69,1.2673595]
[1733367009771,16.5732405,232.95,232.73,1.2673595]
[1733367009772,12.8406,232.95,232.73,1.2673595]
[1733367009946,7.9071,232.94,232.69,1.2673595]
[1733367010140,4.93773196,232.83,232.69,1.2673595]
[1733367010437,4.93773196,232.88,232.66,14.1147595]
[1733367010746,25.6812,232.95,232.66,14.1147595]
[1733367010747,25.6812,232.95,232.72,1.2673595]
[1733367010936,0.20317572,232.78,232.64,1.2673595]
[1733367011270,4.93773196,232.78,232.6,1.2673595]
[1733367011451,4.93773196,232.85,232.6,1.2673595]
[1733367011649,5.0,232.88,232.69,1.2673595]
[1733367011843,4.93773196,232.88,232.71,1.2673595]
[1733367012172,4.93773196,232.88,232.68,1.2673595]
[1733367012735,0.20317572,232.8,232.68,1.2673595]
[1733367012938,23.776884,232.78,232.72,1.2673595]
[1733367013160,20.0,232.75,232.68,1.2673595]
[1733367013361,23.776884,232.78,232.56,17.5299]
[1733367013362,20.0,232.71,232.61,1.2673595]
[1733367013664,20.0,232.63,232.55,1.2673595]
[1733367013848,20.0,232.63,232.53,1.2673595]
[1733367014043,23.776884,232.58,232.49,1.2673595]
[1733367014271,20.0,232.55,232.53,1.2673595]
[1733367014449,23.902374,232.7,232.53,1.2673595]
[1733367014765,0.12549,232.66,232.49,1.2673595]
[1733367015070,20.0,232.59,232.48,1.2673595]
[1733367015365,20.0,232.55,232.51,1.2673595]
[1733367015569,20.0,232.55,232.49,1.2673595]
[1733367015869,20.0,232.51,232.45,1.2673595]
[1733367016052,23.776884,232.54,232.37,12.6894]
[1733367016053,20.0,232.47,232.37,12.6894]
[1733367016363,20.0,232.39,232.33,1.2673595]
[1733367016662,20.0,232.39,232.36,1.2673595]
[1733367016870,4.53138052,232.46,232.36,1.2673595]
[1733367017071,20.0,232.42,232.38,1.2673595]
[1733367017365,20.0,232.42,232.35,1.2673595]
[1733367017573,4.93773196,232.51,232.35,1.2673595]
[1733367017863,4.93773196,232.51,232.38,0.12549]
[1733367018062,4.93773196,232.65,232.48,1.2673595]
[1733367018267,3.7326405,232.64,232.39,1.2673595]
[1733367018475,5.32866571,232.63,232.39,1.2673595]
[1733367018676,10.06322195,232.63,232.39,1.2673595]
[1733367018856,0.12549,232.6,232.4,1.2673595]
[1733367019047,0.20317572,232.59,232.44,1.2673595]
[1733367019252,0.12549,232.58,232.44,1.2673595]
[1733367019451,23.776884,232.51,232.39,1.2673595]
[1733367019755,20.0,232.48,232.46,1.2673595]
[1733367020265,20.0,232.48,232.27,12.6894]
[1733367020266,20.0,232.7,232.47,1.2673595]
[1733367020459,4.93773196,232.57,232.41,1.2673595]
[1733367020955,0.12549,232.53,232.35,1.2673595]
[1733367021167,0.20317572,232.52,232.32,1.2673595]
[1733367021472,0.20317572,232.52,232.3,1.2673595]
[1733367021473,20.12549,232.49,232.3,1.2673595]
[1733367021671,20.0,232.49,232.31,1.2673595]
[1733367021875,20.0,232.49,232.27,12.6894]
[1733367021876,24.93773196,232.49,232.39,1.2673595]
[1733367022046,4.93773196,232.48,232.29,1.2673595]
[1733367022255,4.93773196,232.48,232.31,1.2673595]
[1733367022467,20.0,232.45,232.28,1.2673595]
[1733367022787,20.0,232.45,232.37,1.2673595]
[1733367023151,23.2345478,232.62,232.27,12.6894]
[1733367023152,10.7478,232.61,232.39,1.2673595]
[1733367023378,12.86603196,232.55,232.39,1.2673595]
[1733367023673,4.93773196,232.54,232.41,0.12549]
[1733367023872,0.20317572,232.54,232.4,1.2673595]
[1733367024384,0.20317572,232.54,232.38,1.2673595]
[1733367024685,0.12549,232.53,232.32,1.2673595]
[1733367024873,0.25098,232.49,232.32,1.2673595]
[1733367025254,0.12549,232.47,232.32,1.2673595]
[1733367025462,0.12549,232.47,232.33,1.2673595]
[1733367025661,0.40635144,232.46,232.36,1.2673595]
[1733367025863,0.40635144,232.46,232.27,16.9946]
[1733367025864,0.40635144,232.46,232.34,1.2673595]
[1733367026467,0.40635144,232.46,232.32,1.2673595]
[1733367026779,0.40635144,232.46,232.37,1.2673595]
[1733367026955,0.40635144,232.46,232.27,12.6894]
[1733367026956,0.40635144,232.46,232.38,1.2673595]
[1733367027470,0.40635144,232.46,232.32,1.2673595]
[1733367027676,0.12549,232.45,232.32,1.2673595]
[1733367027863,0.12549,232.46,232.34,1.2673595]
[1733367028076,0.12549,232.44,232.27,13.9567595]
[1733367028257,0.25098,232.44,232.27,12.6894]
[1733367028576,20.25098,232.42,232.25,1.2673595]
[1733367028769,20.25098,232.42,232.23,1.2673595]
[1733367028964,20.0,232.39,232.25,1.2673595]
[1733367029369,4.93773196,232.38,232.25,1.2673595]
[1733367029570,4.93773196,232.38,232.23,1.2673595]
[1733367029889,4.93773196,232.47,232.34,1.2673595]
[1733367030487,4.93773196,232.47,232.32,1.2673595]
[1733367030982,22.84773195,232.47,232.23,1.2673595]
[1733367031158,20.0,232.45,232.31,1.2673595]
[1733367031359,0.20317572,232.44,232.27,1.2673595]
[1733367031584,20.0,232.41,232.29,1.2673595]
[1733367031770,20.0,232.41,232.26,1.2673595]
[1733367032176,20.0,232.41,232.21,4.3064]
[1733367032177,0.20317572,232.41,232.3,1.2673595]
[1733367032478,20.0,232.4,232.27,1.2673595]
[1733367032678,0.20317572,232.39,232.27,1.2673595]
[1733367032878,0.20317572,232.39,232.2,1.2673595]
[1733367032879,20.0,232.36,232.2,1.2673595]
[1733367033187,20.0,232.36,232.25,1.2673595]
[1733367033383,20.0,232.36,232.18,12.5409]
[1733367033384,20.0,232.36,232.2,1.2673595]
[1733367033587,24.98553624,232.35,232.18,12.5409]
[1733367033790,24.86004624,232.35,232.18,13.8082595]
[1733367033967,24.73455624,232.35,232.26,1.2673595]
[1733367034163,3.7326405,232.49,232.29,1.2673595]
[1733367034164,13.21769999,232.48,232.29,1.2673595]
[1733367034377,4.93773196,232.39,232.29,1.2673595]
[1733367034792,8.2177,232.48,232.33,1.2673595]
[1733367034999,5.20317571,232.47,232.26,1.2673595]
[1733367035188,4.99999999,232.46,232.24,1.2673595]
[1733367035489,4.93773196,232.45,232.28,1.2673595]
[1733367035687,0.12549,232.44,232.28,1.2673595]
[1733367035873,0.12549,232.42,232.28,1.2673595]
[1733367036069,0.12549,232.42,232.19,4.3068]
[1733367036070,0.25098,232.4,232.25,1.2673595]
[1733367036272,4.98553624,232.4,232.27,1.2673595]
[1733367036490,0.25098,232.38,232.27,1.2673595]
[1733367036694,20.0,232.41,232.31,1.2673595]
[1733367036889,20.0,232.39,232.29,1.2673595]
[1733367037079,4.93773196,232.43,232.29,1.2673595]
[1733367037396,4.93773196,232.51,232.39,1.2673595]
[1733367038167,4.93773196,232.51,232.37,1.2673595]
[1733367038476,0.12549,232.56,232.43,1.2673595]
[1733367038791,4.93773196,232.57,232.43,1.2673595]
[1733367038992,10.7466,232.64,232.47,1.2673595]
[1733367038993,4.93773196,232.61,232.47,1.2673595]
[1733367039171,0.12549,232.6,232.43,1.2673595]
[1733367039375,3.7326405,232.62,232.39,12.9607]
[1733367039376,4.99999999,232.59,232.39,12.9607]
[1733367039670,0.40635144,232.59,232.39,12.9607]
[1733367039886,10.7466,232.64,232.39,12.9607]
[1733367039887,12.91,232.61,232.47,1.2673595]
[1733367040085,16.15347351,232.61,232.45,1.2673595]
[1733367040287,12.91,232.59,232.39,12.9607]
[1733367040596,12.91,232.57,232.4,1.2673595]
[1733367040997,12.91,232.55,232.4,1.2673595]
[1733367041199,20.0,232.52,232.4,1.2673595]
[1733367041373,12.91,232.58,232.47,1.2673595]
[1733367041573,12.91,232.58,232.42,1.2673595]
[1733367041804,3.24347351,232.57,232.44,1.2673595]
[1733367042008,0.3585309,232.67,232.49,1.2673595]
[1733367042375,12.91,232.65,232.49,1.2673595]
[1733367042676,12.91,232.65,232.51,1.2673595]
[1733367042887,3.24347351,232.64,232.54,1.2673595]
[1733367043088,0.3585309,232.67,232.54,1.2673595]
[1733367043309,0.3585309,232.67,232.58,1.2673595]
[1733367043600,0.3585309,232.67,232.63,1.2673595]
[1733367043981,0.3585309,232.67,232.65,1.2673595]
[1733367044307,0.3585309,232.67,232.6,1.2673595]
[1733367044787,0.3585309,232.67,232.62,1.2673595]
[1733367045398,0.12549,232.65,232.51,1.2673595]
[1733367045601,5.29626286,232.67,232.51,1.2673595]
[1733367045900,0.3585309,232.67,232.59,1.2673595]
[1733367046199,0.3585309,232.67,232.51,1.2673595]
[1733367046380,20.0,232.62,232.52,1.2673595]
[1733367046577,32.91,232.62,232.56,1.2673595]
[1733367046776,32.91,232.62,232.5,1.2673595]
[1733367047084,0.25098,232.61,232.47,1.2673595]
[1733367047392,12.91,232.53,232.43,1.2673595]
[1733367047776,12.91,232.49,232.43,1.2673595]
[1733367047974,10.18871195,232.61,232.29,13.0854]
[1733367047975,32.91,232.46,232.39,14.2280595]
[1733367048177,32.91,232.46,232.34,1.2673595]
[1733367048383,12.91,232.44,232.31,1.2673595]
[1733367048594,12.91,232.44,232.28,12.8508]
[1733367048595,32.91,232.41,232.29,1.2673595]
[1733367048784,20.0,232.38,232.28,12.8508]
[1733367049107,32.91,232.38,232.28,12.8508]
[1733367049397,12.91,232.41,232.33,1.2673595]
[1733367049578,12.91,232.41,232.38,1.2673595]
[1733367050083,32.91,232.41,232.38,1.2673595]
[1733367050683,12.91,232.44,232.4,1.2673595]
[1733367050890,12.91,232.46,232.4,1.2673595]
[1733367051083,20.0,232.43,232.38,1.2673595]
[1733367051283,20.0,232.53,232.4,1.2673595]
[1733367051485,4.62306234,232.52,232.43,1.2673595]
[1733367051689,12.91,232.51,232.38,1.2673595]
[1733367051897,4.62306234,232.52,232.38,1.2673595]
[1733367051898,12.91,232.52,232.38,1.2673595]
[1733367052237,17.90999999,232.49,232.31,1.2673595]
[1733367052394,12.91,232.46,232.28,12.8508]
[1733367052899,0.12549,232.38,232.28,12.8508]
[1733367053098,0.12549,232.38,232.21,1.2673595]
[1733367053285,20.0,232.33,232.21,1.2673595]
[1733367053800,4.62087457,232.32,232.21,1.2673595]
[1733367054175,0.25098,232.28,232.12,1.2673595]
[1733367054504,0.25098,232.26,232.12,1.2673595]
[1733367054717,0.12549,232.26,232.12,1.2673595]
[1733367054908,0.12549,232.22,232.1,14.0801595]
[1733367055207,20.0,232.17,232.08,0.1479754]
[1733367055418,0.18290955,232.16,232.08,0.1479754]
[1733367055709,16.75235995,232.16,232.08,0.1479754]
[1733367056479,3.84235995,232.16,232.08,0.1479754]
[1733367057199,16.75235995,232.16,232.08,0.1479754]
[1733367057980,20.0,232.09,232.08,0.1479754]
[1733367058284,20.25098,232.09,232.08,0.1479754]
[1733367058776,20.0,232.09,232.08,0.1479754]
[1733367059100,23.7849022,232.09,232.08,0.1479754]
[1733367059404,23.86701577,232.09,232.08,0.1479754]
[1733367059790,20.25098,232.09,232.08,0.1479754]
[1733367060096,20.0,232.2,232.08,0.1479754]
[1733367060402,0.12549,232.19,232.08,0.1479754]
[1733367060611,23.76024638,232.19,232.08,0.1479754]
[1733367060900,3.63475638,232.19,232.08,1.4153349]
[1733367061105,4.93773196,232.25,232.08,1.4153349]
[1733367061278,3.63475638,232.22,232.08,1.4153349]
[1733367061680,3.63475638,232.22,232.11,1.2673595]
[1733367061883,0.12549,232.23,232.09,1.2673595]
[1733367062106,16.77262612,232.22,232.08,0.1479754]
[1733367062401,13.03549,232.16,232.08,0.1479754]
[1733367062807,13.03549,232.14,232.08,0.1479754]
[1733367062997,16.7681305,232.12,232.08,0.1479754]
[1733367063204,4.73455624,232.16,231.89,1.2673595]
[1733367063205,0.12549,232.03,231.89,1.2673595]
[1733367063407,20.0,231.96,231.87,1.2673595]
[1733367063613,23.776884,231.95,231.86,1.2673595]
[1733367063780,23.776884,231.95,231.85,2.7738658]
[1733367063982,0.12549,231.9,231.85,1.5065063]
[1733367064304,24.027864,231.87,231.85,1.5065063]
[1733367064495,36.937864,231.87,231.85,1.5065063]
[1733367064693,40.57262038,231.86,231.85,1.5065063]
[1733367064898,36.812374,231.86,231.73,13.3258]
[1733367065094,20.25098,231.8,231.63,14.5931595]
[1733367065415,20.25098,231.8,231.64,1.2673595]
[1733367065711,0.12549,231.78,231.63,13.3258]
[1733367066007,20.12549,231.76,231.63,13.3258]
[1733367066192,0.12549,231.73,231.63,13.3258]
[1733367066391,23.71994653,231.76,231.63,13.3258]
[1733367066719,0.12549,231.74,231.63,1.2673595]
[1733367066882,0.12549,231.74,231.57,1.2673595]
[1733367067084,23.902374,231.71,231.57,1.2673595]
[1733367067287,23.776884,231.71,231.67,1.2673595]
[1733367067484,23.902374,231.84,231.7,1.2673595]
[1733367067711,23.776884,231.76,231.62,1.7738658]
[1733367068009,23.902374,231.72,231.62,0.5065063]
[1733367068224,0.12549,231.67,231.62,0.5065063]
[1733367068398,20.0,231.65,231.62,0.5065063]
[1733367068599,27.95669622,231.64,231.62,0.5065063]
[1733367068805,0.5065063,231.58,231.54,1.2673595]
[1733367069110,20.0,231.6,231.51,1.2673595]
[1733367069330,20.0,231.6,231.55,1.2673595]
[1733367069494,6.11553473,231.7,231.58,1.2673595]
[1733367069693,0.12549,231.69,231.58,1.2673595]
[1733367070019,20.0,231.74,231.55,1.2673595]
[1733367070020,20.0,231.65,231.55,1.2673595]
[1733367070312,3.99613109,231.64,231.52,1.2673595]
[1733367070613,0.25098,231.6,231.5,1.2673595]
[1733367070810,0.25098,231.6,231.4,13.0047]
[1733367070811,23.902374,231.56,231.42,1.2673595]
[1733367071026,23.902374,231.52,231.42,1.2673595]
[1733367071195,23.902374,231.52,231.29,12.6319]
[1733367071196,23.902374,231.52,231.45,1.2673595]
[1733367071398,0.12549,231.51,231.47,1.2673595]
[1733367071818,0.12549,231.49,231.41,1.2673595]
[1733367071999,4.60505486,231.48,231.45,1.2673595]
[1733367072202,0.25098,231.46,231.4,1.2673595]
[1733367072412,24.027864,231.43,231.31,1.2673595]
[1733367072616,24.027864,231.39,231.31,1.2673595]
[1733367072803,24.027864,231.39,231.32,1.2673595]
[1733367073000,20.0,231.32,231.28,1.2673595]
[1733367073199,0.12549,231.34,231.28,1.2673595]
[1733367073412,0.12549,231.3,231.22,1.2673595]
[1733367073619,24.027864,231.27,231.16,1.2673595]
[1733367073817,24.027864,231.27,231.24,1.2673595]
[1733367074024,24.027864,231.27,231.19,1.2673595]
[1733367074229,24.027864,231.27,231.02,6.6300417]
[1733367074230,24.027864,231.23,231.18,1.2673595]
[1733367074417,24.027864,231.23,231.19,1.2673595]
[1733367074599,20.0,231.2,231.15,0.4881098]
[1733367074797,24.027864,231.19,231.15,1.7554693]
[1733367075229,23.776884,231.19,231.17,1.2673595]
[1733367075419,23.776884,231.19,231.15,0.4881098]
[1733367075420,23.776884,231.19,231.15,1.7554693]
[1733367075606,4.80711026,231.24,231.15,1.7554693]
[1733367075607,5.14090768,231.23,231.21,1.2673595]
[1733367075803,23.776884,231.22,231.21,1.2673595]
[1733367076005,20.0,231.2,231.17,1.2673595]
[1733367076205,0.12549,231.18,231.15,0.4881098]
[1733367076417,23.902374,231.18,231.15,1.7554693]
[1733367076630,23.776884,231.18,231.15,1.7554693]
[1733367076829,4.99999999,231.31,231.15,1.7554693]
[1733367076830,20.0,231.36,231.21,1.2673595]
[1733367077013,0.37590711,231.35,231.24,1.2673595]
[1733367077323,3.56106622,231.31,231.15,1.7554693]
[1733367077627,5.26639768,231.3,231.15,0.4881098]
[1733367077804,4.49873329,231.29,231.16,1.2673595]
[1733367078108,5.14090768,231.28,231.16,1.2673595]
[1733367078310,20.0,231.2,231.16,1.2673595]
[1733367078522,23.902374,231.19,231.16,1.2673595]
[1733367078723,29.04328168,231.19,231.16,1.2673595]
[1733367078925,29.04328168,231.19,231.15,0.4881098]
[1733367079132,29.04328168,231.19,231.16,1.2673595]
[1733367079445,3.56106622,231.27,231.15,0.4881098]
[1733367079446,5.14090768,231.27,231.21,1.2673595]
[1733367080237,5.14090768,231.27,231.23,1.2673595]
[1733367080429,5.14090768,231.27,231.25,1.2673595]
[1733367080631,5.14090768,231.27,231.19,1.2673595]
[1733367080939,5.14090768,231.27,231.15,0.4881098]
[1733367080940,5.14090768,231.27,231.21,1.2673595]
[1733367081142,24.027864,231.26,231.19,1.2673595]
[1733367081348,5.14090768,231.27,231.25,1.2673595]
[1733367081515,5.14090768,231.39,231.27,1.2673595]
[1733367081711,0.12549,231.38,231.27,1.2673595]
[1733367081941,0.12549,231.36,231.27,1.2673595]
[1733367082160,0.12549,231.34,231.2,1.2673595]
[1733367082432,22.86940875,231.33,231.2,1.2673595]
[1733367082642,13.03549,231.29,231.2,1.2673595]
[1733367082843,4.99999999,231.36,231.15,0.4881098]
[1733367082844,24.027864,231.25,231.23,1.2673595]
[1733367083048,0.12549,231.21,231.19,1.2673595]
[1733367083338,20.25098,231.16,231.15,0.4881098]
[1733367083508,56.937864,231.16,231.15,0.4881098]
[1733367083713,61.63087507,231.16,231.15,0.38850889]
[1733367083932,44.027864,231.16,231.15,0.38850889]
[1733367084138,56.937864,231.16,231.15,0.38850889]
[1733367084338,61.62368167,231.16,231.15,0.38850889]
[1733367084544,48.71368167,231.16,231.0,5.0]
[1733367084719,0.12549,231.15,230.86,12.2039]
[1733367085040,12.91,231.03,230.86,12.2039]